fUSD/lending_fUSD_20250530
["ID","MTS","AMOUNT","RATE_DAILY","PERIOD"]
[363107874,1748581850039,-420.0,0.00022191,2]
[363107875,1748581850048,-420.0,0.00022191,2]
[363107876,1748581850058,-554.84,0.00022191,2]
[363107877,1748581850067,-2474.64,0.00022191,2]
[363107878,1748581850079,-1380.32,0.00022191,2]
[363107879,1748581850088,-420.0,0.00022191,2]
[363107880,1748581850098,-537.81,0.00022191,2]
[363107881,1748581850108,-420.0,0.00022191,2]
[363107882,1748581850117,-420.0,0.00022191,2]
[363107883,1748581850127,-420.0,0.00022191,2]
[363107884,1748581850137,-431.1,0.00022191,2]
[363107885,1748581850146,-420.0,0.00022191,2]
[363107886,1748581850157,-876.43,0.00022191,2]
[363107887,1748581850167,-420.0,0.00022191,2]
[363107888,1748581850176,-420.0,0.00022191,2]
[363107889,1748581850187,-230.03009426,0.00022191,2]
[363107890,1748581850196,-420.0,0.00022191,2]
[363107891,1748581850206,-420.0,0.00022191,2]
[363107892,1748581850216,-590.09,0.00022191,2]
[363107893,1748581850225,-420.0,0.00022191,2]
[363107894,1748581850236,-420.0,0.00022191,2]
[363107895,1748581850246,-420.0,0.00022191,2]
[363107896,1748581850256,-533.46,0.00022191,2]
[363107897,1748581850266,-1271.78,0.00022191,2]
[363107898,1748581850275,-420.0,0.00022191,2]
[363107899,1748581850284,-420.0,0.00022191,2]
[363107900,1748581850294,-1583.22,0.00022191,2]
[363107901,1748581850303,-1188.08,0.00022191,2]
[363107902,1748581850313,-420.0,0.00022191,2]
[363107903,1748581850322,-420.0,0.00022191,2]
[363107904,1748581850332,-994.28,0.00022191,2]
[363107905,1748581850342,-156.181911,0.00022191,7]
[363107906,1748581850351,-420.0,0.00022191,2]
[363107907,1748581850360,-420.0,0.00022191,2]
[363107908,1748581850370,-477.51,0.00022191,2]
[363107909,1748581850380,-420.0,0.00022191,2]
[363107910,1748581850390,-808.77,0.00022191,2]
[363107911,1748581850399,-1486.58,0.00022191,2]
[363107912,1748581850408,-1049.79,0.00022191,2]
[363107913,1748581850418,-492.61,0.00022191,2]
[363107914,1748581850427,-420.0,0.00022191,2]
[363107915,1748581850437,-280.031112,0.00022191,7]
[363107916,1748581850447,-595.6,0.00022191,2]
[363107917,1748581850457,-280.031112,0.00022191,7]
[363107918,1748581850466,-280.031112,0.00022191,7]
[363107919,1748581850476,-280.031112,0.00022191,7]
[363107920,1748581850486,-420.0,0.00022191,2]
[363107921,1748581850496,-420.0,0.00022191,2]
[363107922,1748581850506,-420.0,0.00022191,2]
[363107923,1748581850515,-280.031112,0.00022191,7]
[363107924,1748581850524,-280.031112,0.00022191,7]
[363107925,1748581850534,-280.031112,0.00022191,7]
[363107926,1748581850543,-280.031112,0.00022191,7]
[363107927,1748581850553,-154.020996,0.00022191,7]
[363107928,1748581850563,-499.14,0.00022191,2]
[363107929,1748581850572,-496.64,0.00022191,2]
[363107930,1748581850582,-420.0,0.00022191,2]
[363107931,1748581850592,-1886.86,0.00022191,2]
[363107932,1748581850602,-1752.64,0.00022191,2]
[363107933,1748581850611,-420.0,0.00022191,2]
[363107934,1748581850621,-1184.2,0.00022191,2]
[363107935,1748581850630,-420.0,0.00022191,2]
[363107936,1748581850640,-420.0,0.00022191,2]
[363107937,1748581850650,-420.0,0.00022191,2]
[363107938,1748581850659,-283.96951343,0.00022191,2]
[363107939,1748581850668,-420.0,0.00022191,2]
[363107940,1748581850678,-564.56,0.00022191,2]
[363107941,1748581850687,-420.0,0.00022191,2]
[363107942,1748581850698,-944.35,0.00022191,2]
[363107943,1748581850707,-151.0,0.00022191,7]
[363107944,1748581850717,-151.0,0.00022191,7]
[363107945,1748581850727,-420.0,0.00022191,2]
[363107946,1748581850736,-735.39,0.00022191,2]
[363107947,1748581850746,-286.752314,0.00022191,7]
[363107948,1748581850755,-840.26,0.00022191,2]
[363107949,1748581850765,-420.0,0.00022191,2]
[363107950,1748581850774,-151.0,0.00022191,7]
[363107951,1748581850784,-151.0,0.00022191,7]
[363107952,1748581850794,-151.0,0.00022191,7]
[363107953,1748581850803,-151.0,0.00022191,7]
[363107954,1748581850812,-420.0,0.00022191,2]
[363107955,1748581850821,-420.0,0.00022191,2]
[363107956,1748581850832,-420.0,0.00022191,2]
[363107957,1748581850841,-426.05,0.00022191,2]
[363107958,1748581850850,-246.020818,0.00022191,7]
[363107959,1748581850859,-1287.69,0.00022191,2]
[363107960,1748581850868,-420.0,0.00022191,2]
[363107961,1748581850878,-483.31,0.00022191,2]
[363107962,1748581850887,-1018.81,0.00022191,2]
[363107963,1748581850901,-530.41,0.00022191,2]
[363107964,1748581850911,-1312.13,0.00022191,2]
[363107965,1748581850920,-506.34,0.00022191,2]
[363107966,1748581850930,-389.23710382,0.00022191,2]
[363107967,1748581850942,-420.0,0.00022191,2]
[363107968,1748581850952,-506.21,0.00022191,2]
[363107969,1748581850962,-925.73,0.00022191,2]
[363107970,1748581850971,-562.58,0.00022191,2]
[363107971,1748581850982,-504.21,0.00022191,2]
[363107972,1748581850993,-565.11,0.00022191,2]
[363107973,1748581851003,-420.0,0.00022191,2]
[363107974,1748581851012,-420.0,0.00022191,2]
[363107975,1748581851023,-420.0,0.00022191,2]
[363107976,1748581851032,-521.58,0.00022191,2]
[363107977,1748581851041,-7989.17,0.00022191,2]
[363107978,1748581851051,-1076.77,0.00022191,2]
[363107979,1748581851061,-420.0,0.00022191,2]
[363107980,1748581851070,-420.0,0.00022191,2]
[363107981,1748581851080,-420.0,0.00022191,2]
[363107982,1748581851089,-480.71,0.00022191,2]
[363107983,1748581851098,-1365.98,0.00022191,2]
[363107984,1748581851108,-676.29,0.00022191,2]
[363107985,1748581851117,-420.0,0.00022191,2]
[363107986,1748581851126,-776.14,0.00022191,2]
[363107987,1748581851135,-420.0,0.00022191,2]
[363107988,1748581851145,-785.3,0.00022191,2]
[363107989,1748581851154,-732.78,0.00022191,2]
[363107990,1748581851163,-383.17646591,0.00022191,2]
[363107991,1748581851174,-624.19,0.00022191,2]
[363107992,1748581851184,-420.0,0.00022191,2]
[363107993,1748581851193,-466.99,0.00022191,2]
[363107994,1748581851203,-2263.5,0.00022191,2]
[363107995,1748581851212,-514.55,0.00022191,2]
[363107996,1748581851221,-367.53089006,0.00022191,2]
[363107997,1748581851231,-420.0,0.00022191,2]
[363107998,1748581851240,-1337.86,0.00022191,2]
[363107999,1748581851249,-420.0,0.00022191,2]
[363108000,1748581851259,-917.1,0.00022191,2]
[363108001,1748581851268,-566.87,0.00022191,2]
[363108002,1748581851278,-527.22,0.00022191,2]
[363108003,1748581851287,-2649.93,0.00022191,2]
[363108004,1748581851297,-420.0,0.00022191,2]
[363108005,1748581851307,-1112.24,0.00022191,2]
[363108006,1748581851316,-696.53,0.00022191,2]
[363108007,1748581851327,-451.71671828,0.00022191,2]
[363108008,1748581851338,-957.14,0.00022191,2]
[363108009,1748581851347,-877.05,0.00022191,2]
[363108010,1748581851357,-464.18,0.00022191,2]
[363108011,1748581851366,-1633.27,0.00022191,2]
[363108012,1748581851376,-674.33,0.00022191,2]
[363108013,1748581851385,-3384.38,0.00022191,2]
[363108014,1748581851394,-420.0,0.00022191,2]
[363108015,1748581851404,-420.0,0.00022191,2]
[363108016,1748581851412,-2780.31,0.00022191,2]
[363108017,1748581851421,-9084.86,0.00022191,2]
[363108018,1748581851431,-1353.27,0.00022191,2]
[363108019,1748581851440,-420.0,0.00022191,2]
[363108020,1748581851449,-760.22,0.00022191,2]
[363108021,1748581851459,-1450.36,0.00022191,2]
[363108022,1748581851468,-486.36,0.00022191,2]
[363108023,1748581851477,-3445.8,0.00022191,2]
[363108024,1748581851486,-462.63,0.00022191,2]
[363108025,1748581851496,-1677.91,0.00022191,2]
[363108026,1748581851505,-2513.8,0.00022191,2]
[363108027,1748581851515,-1196.17,0.00022191,2]
[363108028,1748581851525,-1011.58,0.00022191,2]
[363108029,1748581851534,-1130.05,0.00022191,2]
[363108030,1748581851544,-456.98,0.00022191,2]
[363108031,1748581851554,-140583.55,0.00022191,2]
[363108032,1748581851563,-151.0,0.00022191,7]
[363108033,1748581851572,-151.0,0.00022191,7]
[363108034,1748581851583,-8037.1,0.00022191,2]
[363108035,1748581851593,-151.0,0.00022191,7]
[363108036,1748581851602,-151.0,0.00022191,7]
[363108037,1748581851611,-2173.134396,0.00022191,7]
[363108038,1748581851621,-1555.57,0.00022191,2]
[363108039,1748581851630,-2173.134396,0.00022191,7]
[363108040,1748581851639,-2173.134396,0.00022191,7]
[363108041,1748581851649,-420.0,0.00022191,2]
[363108042,1748581851658,-2173.134396,0.00022191,7]
[363108043,1748581851668,-2173.134396,0.00022191,7]
[363108044,1748581851677,-724.83,0.00022191,2]
[363108045,1748581851687,-420.0,0.00022191,2]
[363108046,1748581851696,-558.73,0.00022191,2]
[363108047,1748581851705,-521.29,0.00022191,2]
[363108048,1748581851715,-943.17,0.00022191,2]
[363108049,1748581851725,-2173.134396,0.00022191,7]
[363108050,1748581851734,-10179.48,0.00022191,2]
[363108051,1748581851744,-420.0,0.00022191,2]
[363108052,1748581851754,-457.53,0.00022191,2]
[363108053,1748581851763,-420.0,0.00022191,2]
[363108054,1748581851772,-2173.134396,0.00022191,7]
[363108055,1748581851782,-2173.134396,0.00022191,7]
[363108056,1748581851791,-2173.134396,0.00022191,7]
[363108057,1748581851800,-2173.134396,0.00022191,7]
[363108058,1748581851810,-420.0,0.00022191,2]
[363108059,1748581851819,-2052.62,0.00022191,2]
[363108060,1748581851828,-1103.66,0.00022191,2]
[363108061,1748581851838,-1488.61,0.00022191,2]
[363108062,1748581851847,-152.933742,0.00022191,7]
[363108063,1748581851856,-612.39,0.00022191,2]
[363108064,1748581851865,-420.0,0.00022191,2]
[363108065,1748581851875,-612.9,0.00022191,2]
[363108066,1748581851884,-1765.94,0.00022191,2]
[363108067,1748581851894,-440.93890944,0.00022191,2]
[363108068,1748581851906,-1326.65,0.00022191,2]
[363108069,1748581851915,-2779.69,0.00022191,2]
[363108070,1748581851925,-935.41,0.00022191,2]
[363108071,1748581851934,-1854.23,0.00022191,2]
[363108072,1748581851945,-426.09,0.00022191,2]
[363108073,1748581851953,-331.220971,0.00022191,7]
[363108074,1748581851963,-331.220971,0.00022191,7]
[363108075,1748581851973,-331.220971,0.00022191,7]
[363108076,1748581851982,-331.220971,0.00022191,7]
[363108077,1748581851991,-331.220971,0.00022191,7]
[363108078,1748581852001,-331.220971,0.00022191,7]
[363108079,1748581852010,-331.220971,0.00022191,7]
[363108080,1748581852019,-331.220971,0.00022191,7]
[363108081,1748581852028,-331.220971,0.00022191,7]
[363108082,1748581852037,-1451.19,0.00022191,2]
[363108083,1748581852046,-331.220971,0.00022191,7]
[363108084,1748581852056,-792.09,0.00022191,2]
[363108085,1748581852065,-469.12,0.00022191,2]
[363108086,1748581852074,-11233.52,0.00022191,2]
[363108087,1748581852085,-23455.96,0.00022191,2]
[363108088,1748581852094,-3213.99,0.00022191,2]
[363108089,1748581852104,-5578.72,0.00022191,2]
[363108090,1748581852113,-216.355224,0.00022191,7]
[363108091,1748581852123,-151.0,0.00022191,7]
[363108092,1748581852132,-908.93,0.00022191,2]
[363108093,1748581852141,-151.0,0.00022191,7]
[363108094,1748581852150,-151.0,0.00022191,7]
[363108095,1748581852160,-1440.14,0.00022191,2]
[363108096,1748581852169,-151.0,0.00022191,7]
[363108097,1748581852178,-1220.15,0.00022191,2]
[363108098,1748581852188,-613.97,0.00022191,2]
[363108099,1748581852197,-420.0,0.00022191,2]
[363108100,1748581852206,-1489.02,0.00022191,2]
[363108101,1748581852215,-3359.57,0.00022191,2]
[363108102,1748581852225,-839.56,0.00022191,2]
[363108103,1748581852234,-1327.67,0.00022191,2]
[363108104,1748581852244,-1352.44,0.00022191,2]
[363108105,1748581852254,-420.0,0.00022191,2]
[363108106,1748581852263,-704.57,0.00022191,2]
[363108107,1748581852273,-2788.27,0.00022191,2]
[363108108,1748581852283,-445.35,0.00022191,2]
[363108109,1748581852293,-1519.07,0.00022191,2]
[363108110,1748581852366,-420.0,0.00022191,2]
[363108111,1748581852377,-2585.77,0.00022191,2]
[363108112,1748581852387,-597.65,0.00022191,2]
[363108113,1748581852396,-1417.46,0.00022191,2]
[363108114,1748581852406,-4608.58,0.00022191,2]
[363108115,1748581852417,-909.52,0.00022191,2]
[363108116,1748581852426,-420.0,0.00022191,2]
[363108117,1748581852436,-420.0,0.00022191,2]
[363108118,1748581852445,-1367.38,0.00022191,2]
[363108119,1748581852455,-420.0,0.00022191,2]
[363108120,1748581852464,-37023.16,0.00022191,2]
[363108121,1748581852473,-923.91,0.00022191,2]
[363108122,1748581852483,-1391.64,0.00022191,2]
[363108123,1748581852492,-716.63,0.00022191,2]
[363108124,1748581852501,-455.46,0.00022191,2]
[363108125,1748581852511,-236.821043,0.00022191,7]
[363108126,1748581852520,-236.821043,0.00022191,7]
[363108127,1748581852530,-236.821043,0.00022191,7]
[363108128,1748581852539,-236.821043,0.00022191,7]
[363108129,1748581852548,-594.65,0.00022191,2]
[363108130,1748581852558,-4069.12,0.00022191,2]
[363108131,1748581852568,-1902.08,0.00022191,2]
[363108132,1748581852577,-236.821043,0.00022191,7]
[363108133,1748581852587,-236.821043,0.00022191,7]
[363108134,1748581852596,-236.821043,0.00022191,7]
[363108135,1748581852605,-236.821043,0.00022191,7]
[363108136,1748581852615,-420.0,0.00022191,2]
[363108137,1748581852624,-1250.3,0.00022191,2]
[363108138,1748581852634,-420.0,0.00022191,2]
[363108139,1748581852643,-420.0,0.00022191,2]
[363108140,1748581852653,-420.0,0.00022191,2]
[363108141,1748581852662,-420.0,0.00022191,2]
[363108142,1748581852672,-1407.27,0.00022191,2]
[363108143,1748581852682,-7146.87,0.00022191,2]
[363108144,1748581852691,-420.0,0.00022191,2]
[363108145,1748581852701,-566.38,0.00022191,2]
[363108146,1748581852711,-1682.0,0.00022191,2]
[363108147,1748581852720,-1045.51,0.00022191,2]
[363108148,1748581852729,-450.47,0.00022191,2]
[363108149,1748581852738,-2262.48,0.00022191,2]
[363108150,1748581852748,-1910.47,0.00022191,2]
[363108151,1748581852757,-500.0,0.00022191,2]
[363108152,1748581852766,-491.49,0.00022191,2]
[363108153,1748581852776,-2234.9,0.00022191,2]
[363108154,1748581852785,-709.38,0.00022191,2]
[363108155,1748581852794,-1442.05,0.00022191,2]
[363108156,1748581852803,-705.87,0.00022191,2]
[363108157,1748581852813,-928.89,0.00022191,2]
[363108158,1748581852822,-420.0,0.00022191,2]
[363108159,1748581852833,-3689.12,0.00022191,2]
[363108160,1748581852842,-458.24,0.00022191,2]
[363108161,1748581852852,-1858.88,0.00022191,2]
[363108162,1748581852862,-420.0,0.00022191,2]
[363108163,1748581852871,-1094.01,0.00022191,2]
[363108164,1748581852881,-1248.52,0.00022191,2]
[363108165,1748581852890,-4027.13,0.00022191,2]
[363108166,1748581852905,-420.0,0.00022191,2]
[363108167,1748581852914,-571.02,0.00022191,2]
[363108168,1748581852924,-913.22,0.00022191,2]
[363108169,1748581852934,-420.0,0.00022191,2]
[363108170,1748581852943,-151.0,0.00022191,7]
[363108171,1748581852953,-156.7434,0.00022191,7]
[363108172,1748581852963,-1583.98,0.00022191,2]
[363108173,1748581852972,-711.41,0.00022191,2]
[363108174,1748581852982,-1140.36,0.00022191,2]
[363108175,1748581852992,-5426.31,0.00022191,2]
[363108176,1748581853002,-1057.91,0.00022191,2]
[363108177,1748581853012,-420.0,0.00022191,2]
[363108178,1748581853021,-880.13,0.00022191,2]
[363108179,1748581853031,-1018.72,0.00022191,2]
[363108180,1748581853040,-549.47,0.00022191,2]
[363108181,1748581853050,-711.2,0.00022191,2]
[363108182,1748581853059,-459.43,0.00022191,2]
[363108183,1748581853069,-422.53,0.00022191,2]
[363108184,1748581853080,-3669.52,0.00022191,2]
[363108185,1748581853090,-694.17,0.00022191,2]
[363108186,1748581853099,-643.4,0.00022191,2]
[363108187,1748581853108,-2733.68,0.00022191,2]
[363108188,1748581853118,-7056.85,0.00022191,2]
[363108189,1748581853129,-3061.13,0.00022191,2]
[363108190,1748581853139,-1747.09,0.00022191,2]
[363108191,1748581853150,-1175.43,0.00022191,2]
[363108192,1748581853159,-523.07746466,0.00022191,2]
[363108193,1748581853168,-151.0,0.00022191,7]
[363108194,1748581853177,-420.0,0.00022191,2]
[363108195,1748581853187,-151.0,0.00022191,7]
[363108196,1748581853196,-151.0,0.00022191,7]
[363108197,1748581853206,-420.0,0.00022191,2]
[363108198,1748581853216,-8466.27,0.00022191,2]
[363108199,1748581853225,-892.04,0.00022191,2]
[363108200,1748581853234,-2669.72,0.00022191,2]
[363108201,1748581853244,-1066.39,0.00022191,2]
[363108202,1748581853253,-420.0,0.00022191,2]
[363108203,1748581853263,-2854.15,0.00022191,2]
[363108204,1748581853272,-1760.59,0.00022191,2]
[363108205,1748581853281,-420.0,0.00022191,2]
[363108206,1748581853290,-581.85,0.00022191,2]
[363108207,1748581853300,-420.0,0.00022191,2]
[363108208,1748581853310,-1631.0,0.00022191,2]
[363108209,1748581853320,-3565.03,0.00022191,2]
[363108210,1748581853329,-420.0,0.00022191,2]
[363108211,1748581853338,-1030.27,0.00022191,2]
[363108212,1748581853348,-420.0,0.00022191,2]
[363108213,1748581853357,-638.39,0.00022191,2]
[363108214,1748581853368,-1869.02,0.00022191,2]
[363108215,1748581853377,-151.0,0.00022191,7]
[363108216,1748581853387,-151.0,0.00022191,7]
[363108217,1748581853396,-151.0,0.00022191,7]
[363108218,1748581853407,-151.0,0.00022191,7]
[363108219,1748581853416,-4450.82,0.00022191,2]
[363108220,1748581853426,-151.0,0.00022191,7]
[363108221,1748581853435,-1232.57,0.00022191,2]
[363108222,1748581853444,-151.0,0.00022191,7]
[363108223,1748581853454,-420.0,0.00022191,2]
[363108224,1748581853463,-615.21,0.00022191,2]
[363108225,1748581853472,-10370.15,0.00022191,2]
[363108226,1748581853482,-581.89,0.00022191,2]
[363108227,1748581853491,-3517.61,0.00022191,2]
[363108228,1748581853500,-435.74,0.00022191,2]
[363108229,1748581853510,-1083.64,0.00022191,2]
[363108230,1748581853520,-915.18,0.00022191,2]
[363108231,1748581853529,-2893.92,0.00022191,2]
[363108232,1748581853539,-848.9,0.00022191,2]
[363108233,1748581853548,-420.0,0.00022191,2]
[363108234,1748581853558,-1444.38,0.00022191,2]
[363108235,1748581853568,-420.0,0.00022191,2]
[363108236,1748581853578,-577.15,0.00022191,2]
[363108237,1748581853587,-1071.55,0.00022191,2]
[363108238,1748581853596,-1811.1,0.00022191,2]
[363108239,1748581853606,-3404.47,0.00022191,2]
[363108240,1748581853616,-632.7,0.00022191,2]
[363108241,1748581853625,-453.64,0.00022191,2]
[363108242,1748581853635,-151.0,0.00022191,7]
[363108243,1748581853644,-151.0,0.00022191,7]
[363108244,1748581853654,-420.0,0.00022191,2]
[363108245,1748581853664,-5494.22,0.00022191,2]
[363108246,1748581853673,-420.0,0.00022191,2]
[363108247,1748581853683,-503.29,0.00022191,2]
[363108248,1748581853692,-558.99,0.00022191,2]
[363108249,1748581853702,-420.0,0.00022191,2]
[363108250,1748581853711,-670.99,0.00022191,2]
[363108251,1748581853720,-2333.58,0.00022191,2]
[363108252,1748581853730,-22899.43,0.00022191,2]
[363108253,1748581853740,-2208.51,0.00022191,2]
[363108254,1748581853749,-3292.29,0.00022191,2]
[363108255,1748581853759,-1000.0,0.00022191,2]
[363108256,1748581853769,-883.83,0.00022191,2]
[363108257,1748581853778,-151.0,0.00022191,7]
[363108258,1748581853787,-151.0,0.00022191,7]
[363108259,1748581853797,-151.0,0.00022191,7]
[363108260,1748581853807,-420.0,0.00022191,2]
[363108261,1748581853816,-1273.53,0.00022191,2]
[363108262,1748581853826,-715.89,0.00022191,2]
[363108263,1748581853836,-962.15,0.00022191,2]
[363108264,1748581853846,-423.78,0.00022191,2]
[363108265,1748581853855,-604.09,0.00022191,2]
[363108266,1748581853864,-437.15,0.00022191,2]
[363108267,1748581853873,-439.58,0.00022191,2]
[363108268,1748581853883,-420.0,0.00022191,2]
[363108269,1748581853893,-1049.15,0.00022191,2]
[363108270,1748581853906,-509.35,0.00022191,2]
[363108271,1748581853916,-2487.16,0.00022191,2]
[363108272,1748581853926,-420.0,0.00022191,2]
[363108273,1748581853936,-2788.03,0.00022191,2]
[363108274,1748581853945,-11308.58,0.00022191,2]
[363108275,1748581853954,-663.44,0.00022191,2]
[363108276,1748581853964,-703.09,0.00022191,2]
[363108277,1748581853974,-420.0,0.00022191,2]
[363108278,1748581853984,-933.49883643,0.00022191,2]
[363108279,1748581854884,-420.0,0.00021917,2]
[363108280,1748581854897,-909.72045717,0.00021917,2]
[363108281,1748581854946,-2722.0,0.00021917,2]
[363108282,1748581854968,-2930.06954283,0.00021917,2]
[363108283,1748581854978,-4713.79116357,0.00022191,2]
[363108284,1748581854988,-420.0,0.00022191,2]
[363108285,1748581854997,-989.74,0.00022191,2]
[363108286,1748581855008,-420.0,0.00022191,2]
[363108287,1748581855018,-5922.53,0.00022191,2]
[363108288,1748581855028,-1031.38,0.00022191,2]
[363108289,1748581855037,-1739.16,0.00022191,2]
[363108290,1748581855047,-470.37008349,0.00022191,2]
[363108291,1748581855063,-968.49991651,0.00022191,2]
[363108292,1748581855073,-511.67,0.00022191,2]
[363108293,1748581855083,-581.11,0.00022191,2]
[363108294,1748581855092,-678.97,0.00022191,2]
[363108295,1748581855102,-532.28,0.00022191,2]
[363108296,1748581855112,-420.0,0.00022191,2]
[363108297,1748581855121,-664.0,0.00022191,2]
[363108298,1748581855131,-420.0,0.00022191,2]
[363108299,1748581855141,-1295.68,0.00022191,2]
[363108300,1748581855151,-3597.53763233,0.00022191,2]
[363108301,1748581855162,-5237.75882463,0.00022191,2]
[363108302,1748581855178,-2569.78327386,0.00022191,2]
[363108303,1748581855190,-254.48268705,0.00022191,2]
[363108304,1748581856214,-3202.74,0.00021917,2]
[363108305,1748581856224,-649.86,0.00021917,2]
[363108306,1748581856235,-263.29557227,0.00022096,2]
[363108307,1748581856245,-286.578742,0.00022185,7]
[363108308,1748581856256,-1328.96123722,0.00022191,2]
[363108309,1748581856268,-166.31634491,0.00022191,2]
[363108310,1748581856278,-805.25,0.00022191,2]
[363108311,1748581856288,-420.0,0.00022191,2]
[363108312,1748581856298,-420.0,0.00022191,2]
[363108313,1748581856308,-914.05,0.00022191,2]
[363108314,1748581856318,-420.0,0.00022191,2]
[363108315,1748581856328,-6371.56726022,0.00022191,2]
[363108316,1748581856343,-190.22273978,0.00022191,2]
[363108317,1748581856352,-1909.00600433,0.00022191,2]
[363108318,1748581856388,-1293.73399567,0.00022191,2]
[363108319,1748581856398,-649.86,0.00022191,2]
[363108320,1748581856408,-710.95,0.00022192,2]
[363108321,1748581856418,-353.87,0.00022192,2]
[363108322,1748581856428,-150.55,0.00022192,2]
[363108323,1748581856438,-53.3795086,0.00022192,2]
[363108324,1748581856451,-97.1704914,0.00022192,2]
[363108325,1748581856460,-150.55,0.00022192,2]
[363108326,1748581856470,-353.87,0.00022192,2]
[363108327,1748581856480,-4068.0,0.00022216,2]
[363108328,1748581856490,-848.0,0.00022216,2]
[363108329,1748581856501,-284.369,0.00022216,2]
[363108330,1748581856511,-6929.0,0.00022216,2]
[363108331,1748581856521,-882.0,0.00022216,2]
[363108332,1748581856531,-500.0,0.00022222,2]
[363108333,1748581856541,-500.0,0.00022222,2]
[363108334,1748581856552,-500.0,0.00022243,2]
[363108335,1748581856562,-2999.38271783,0.00022243,2]
[363108336,1748581856572,-1192.0,0.00022245,2]
[363108337,1748581856582,-1192.0,0.00022245,2]
[363108338,1748581856594,-1192.0,0.00022245,2]
[363108339,1748581856604,-1192.0,0.00022245,2]
[363108340,1748581856614,-1192.0,0.00022245,2]
[363108341,1748581856624,-1107.65571075,0.00022245,2]
[363108342,1748581856634,-178.301,0.00022252,2]
[363108343,1748581856645,-1192.0,0.00022259,2]
[363108344,1748581856655,-150.172,0.00022271,2]
[363108345,1748581856666,-941.0,0.00022271,2]
[363108346,1748581856676,-1314.0,0.00022271,2]
[363108347,1748581856687,-801.0,0.00022271,2]
[363108348,1748581856697,-634.0,0.00022271,2]
[363108349,1748581856708,-1466.0,0.00022271,2]
[363108350,1748581856718,-924.0,0.00022271,2]
[363108351,1748581856729,-588.0,0.00022271,2]
[363108352,1748581856739,-556.0,0.00022271,2]
[363108353,1748581856749,-1268.0,0.00022271,2]
[363108354,1748581856760,-280.031112,0.00022271,7]
[363108355,1748581856770,-280.031112,0.00022271,7]
[363108356,1748581856780,-151.0,0.00022271,7]
[363108357,1748581856790,-151.0,0.00022271,7]
[363108358,1748581856800,-196.7838,0.00022271,7]
[363108359,1748581856810,-168.192605,0.00022271,7]
[363108360,1748581856821,-236.821043,0.00022271,7]
[363108361,1748581856831,-236.821043,0.00022271,7]
[363108362,1748581856842,-2999.38271783,0.00022304,2]
[363108363,1748581856851,-151.0,0.0002233,7]
[363108364,1748581856861,-151.0,0.0002233,7]
[363108365,1748581856871,-184.45375264,0.0002235,2]
[363108366,1748581856880,-7828.35219716,0.0002235,2]
[363108367,1748581856891,-152.0,0.00022355,4]
[363108368,1748581856904,-275.56531812,0.00022365,2]
[363108369,1748581856915,-2999.38271783,0.00022365,2]
[363108370,1748581856925,-387.0,0.000224,2]
[363108371,1748581856936,-159.0,0.000224,7]
[363108372,1748581856947,-162.93272316,0.00022437,2]
[363108373,1748581856958,-240.70027971,0.00022446,2]